Cogmind - Beta 16 --- EXPLORER MODE // 2025.11.17 @ 09:41:00 Player: K.K.Y. Result: Destroyed by Y-45 Defender with Beam Rifle Performance ------------- Evolutions (0) 0 Regions Visited (3) 600 Robots Destroyed (38) 190 Value Destroyed (1129) 1129 Prototype IDs (15) 300 Alien Tech Used (0) 0 Bonus (0) 0 TOTAL SCORE: 2219 Bonus ------- None Cogmind --------- Core Integrity 0/250 Matter 283/300 Energy 160/160 System Corruption 0% Temperature Cool (23) Movement Walking (260) Ox2 Location -9/Recycling Parts ------- > --- POWER (1) -------- Light Nuclear Core > --- PROPULSION (3) --- Improved Aluminum Leg Improved Aluminum Leg Improved Aluminum Leg > --- UTILITY (2) ------ Huge Storage Unit Makeshift Thermal Plating > --- WEAPON (2) ------- Barrage Gun Battle Cannon > --- INVENTORY (25) --- Improved Ion Engine Aluminum Leg Improved Heat Sink Cooling System Large Storage Unit Weight Redist. System Machine Analyzer Scrap Shield Authchip [R/Combat] Authchip [Processor] Riot Gun Riot Gun Beam Rifle Improved Medium Laser Improved Medium Laser Shotgun Battle Cannon Datajack Mining Claw Peak State ------------ > --- POWER ------------ Light Nuclear Core > --- PROPULSION ------- Improved Aluminum Leg Improved Aluminum Leg Improved Aluminum Leg > --- UTILITY ---------- Huge Storage Unit Makeshift Thermal Plating > --- WEAPON ----------- Barrage Gun Battle Cannon > --- INVENTORY -------- Aluminum Leg Improved Heat Sink Cooling System Large Storage Unit Machine Analyzer Scrap Shield Authchip [R/Combat] Authchip [Processor] Riot Gun Riot Gun Improved Medium Laser Improved Medium Laser Shotgun Battle Cannon Datajack Mining Claw [Rating: 23] Favorites ----------- Power Light Nuclear Core Engine Ion Engine Power Core Light Nuclear Core Propulsion Light Treads Treads Light Treads Leg Improved Aluminum Leg Utility Medium Storage Unit Storage Medium Storage Unit Protection Makeshift Thermal Plating Weapon Battle Cannon Energy Gun Improved Medium Laser Energy Cannon Subdweller Beam Cannon Ballistic Gun Barrage Gun Ballistic Cannon Battle Cannon Special Weapon Mining Laser Build | -11 -10 -10 -9 ------- Run | Yrd Mat Sub Rec Slots Evolved 1 | . 1 . . Power . | . . . . Propulsion 1 | . 1 . . Utility . | . . . . Weapon . | . . . . Parts Attached 30 | 6 5 14 5 Power 4 | 1 . 3 . Engine 2 | 1 . 1 . Core 2 | . . 2 . Reactor . | . . . . Propulsion 9 | 2 2 2 3 Treads 5 | 2 2 1 . Leg 4 | . . 1 3 Wheel . | . . . . Hover . | . . . . Flight . | . . . . Utility 6 | 2 . 2 2 Device . | . . . . Storage 3 | 1 . . 2 Processor . | . . . . Hackware . | . . . . Protection 3 | 1 . 2 . Artifact . | . . . . Weapon 11 | 1 3 7 . Energy Gun 1 | . 1 . . Energy Cannon 1 | . . 1 . Ballistic Gun 5 | 1 1 3 . Ballistic Cannon 3 | . . 3 . Launcher . | . . . . Special Weapon 1 | . 1 . . Impact Weapon . | . . . . Slashing Weapon . | . . . . Piercing Weapon . | . . . . Special Melee Weapon . | . . . . Unidentified Prototypes 1 | . 1 . . Parts Lost 6 | . . 6 . Power 1 | . . 1 . Propulsion 3 | . . 3 . Utility 1 | . . 1 . Weapon 1 | . . 1 . Highest Loss Streak 2 | . . 2 . To Critical Strikes 1 | . . 1 . Average Backups 9 | . 6 9 15 Power . | . . . . Propulsion . | . . . . Utility 2 | . . 2 6 Weapon 5 | . 4 5 6 Tool/Special . | . . . . Unused Backups 21 | . . 5 16 Power 2 | . . 1 1 Propulsion . | . . . . Utility 7 | . . . 7 Weapon 11 | . . 4 7 Tool/Special 1 | . . . 1 Average Slot Usage (%) 78 | . 97 71 98 Engine 2 | . 12 . . Core 5 | . . 5 12 Treads 16 | . 36 14 . Leg 5 | . . 2 35 Storage 12 | . 12 12 12 Protection 10 | . 12 10 12 Energy Cannon 1 | . . 1 . Ballistic Gun 11 | . 15 10 12 Ballistic Cannon 8 | . . 10 12 Special Weapon 1 | . 4 . . Peak Build Rating 23 | 6 11 16 23 Average Rating 13 | 3 9 13 21 On Entrance 8 | . 6 10 16 Avg Prop Armor Cover (%) . | . . . . Naked Turns . | . . . . Heaviest Build 95 | 20 23 29 95 Greatest Support 60 | 40 60 60 39 Greatest Overweight (x) 8 | . . 8 2 Average Overweight (x) . | . . . 1 Largest Inventory Capacity 25 | 10 10 10 25 Average Capacity 11 | 8 10 10 21 Most Carried 20 | 5 10 10 20 Average Carried 9 | 1 6 9 16 Final Capacity 25 | 10 10 10 25 Final Carried 20 | . 10 10 20 Class Distribution -------------------- 100% | Hacker-Mutant Dominant Class ---------------- Hacker-Mutant | -10/Materials Hacker-Mutant | -10/Subcaves Hacker-Mutant | -9/Recycling Resources | -11 -10 -10 -9 ----------- Run | Yrd Mat Sub Rec Matter Collected 1512 | 258 270 928 56 Remotely . | . . . . Salvage Created 1185 | . 423 714 48 Parts 87 | . 32 52 3 Haulers Intercepted 2 | . 2 . . Recyclers Shooed 1 | . 1 . . Parts Field Recycled . | . . . . Retrieved Matter . | . . . . Parts Self-Destructed . | . . . . Prevented . | . . . . Parts Restored . | . . . . Kills | -11 -10 -10 -9 ------- Run | Yrd Mat Sub Rec Combat Hostiles Destroyed 32 | . 11 20 1 Guns 20 | . 11 9 . Cannons 12 | . . 11 1 Classes Destroyed 7 | . 4 3 . Hauler 2 | . 2 . . Turret 2 | . . 2 . Watcher 2 | . 2 . . Swarmer 8 | . 4 4 . Grunt 11 | . 7 4 . Sentry 2 | . . 1 1 Subdweller 11 | . . 11 . Best Kill Streak 6 | . 3 6 1 Combat Bots Only 4 | . 3 4 1 Max Kills in Single Turn 2 | . 2 1 1 Gunslinging 1 | . 1 . . Exploded . | . . . . Melee . | . . . . Uniques/NPCs Destroyed . | . . . . Combat | -11 -10 -10 -9 -------- Run | Yrd Mat Sub Rec Hostile Shots Fired 227 | . 47 179 1 Missed 69 | . 14 55 . Hits 158 | . 33 124 1 Projectile 158 | . 33 124 1 AOE 1 | . . 1 . Critical Strikes 3 | . . 3 . Damage Taken 1510 | . 250 1252 8 Core 251 | . 9 234 8 Absorbed by Shields . | . . . . Ignored by Resistances 952 | . 159 786 7 Core Remaining (%) 100 | 100 . . . Volleys Fired 185 | . 47 136 2 Largest 2 | . 2 2 2 Hottest 125 | . 120 125 61 Shots Fired 279 | . 75 200 4 Gun 146 | . 71 73 2 Cannon 126 | . . 124 2 Launcher . | . . . . Special 7 | . 4 3 . Kinetic 260 | . 71 185 4 Thermal 19 | . 4 15 . Explosive . | . . . . Electromagnetic . | . . . . Robot Hit Streak 47 | . 26 47 20 Robot Miss Streak 2 | . 2 2 . Penetration Max . | . . . . Secondary Targets 2 | . 2 . . Max Gunslinging Chain 1 | . 1 . . Shots Hit Robots 169 | . 62 103 4 Core Hits 62 | . 26 34 2 Critical Kills . | . . . . Critical Parts Destroyed 1 | . . 1 . Critical Strikes 3 | . . 3 . Destroy 1 | . . 1 . Blast 2 | . . 2 . Melee Attacks . | . . . . Impact . | . . . . Slashing . | . . . . Piercing . | . . . . Sneak Attacks . | . . . . Combat Hostiles . | . . . . Follow-up Attacks . | . . . . Damage Inflicted 2730 | . 779 1865 86 Guns 1682 | . 755 890 37 Cannons 1024 | . . 975 49 Explosions . | . . . . Melee . | . . . . Ramming . | . . . . Kinetic 2502 | . 755 1661 86 Thermal 228 | . 24 204 . Explosive . | . . . . Electromagnetic . | . . . . Impact . | . . . . Slashing . | . . . . Piercing . | . . . . Highest Corruption . | . . . . Average Corruption . | . . . . Corruption Purged . | . . . . Corruption Blocked . | . . . . Overload Shots . | . . . . Overflow Damage 22 | . . 22 . Projectiles 22 | . . 22 . Explosions . | . . . . Melee . | . . . . Knockbacks 10 | . . 10 . Impact . | . . . . Kinetic 10 | . . 10 . Secondary . | . . . . Self-Inflicted Damage . | . . . . Shots . | . . . . Rammed . | . . . . Targets Rammed . | . . . . Kicked . | . . . . Crushed . | . . . . Highest Temperature 56 | . 56 32 28 Average Temperature 14 | . 16 11 17 Received Heat Transfer 792 | . 204 579 9 Siege Activations . | . . . . Martial Activations . | . . . . Shielding Activations . | . . . . Robots Disrupted . | . . . . Combat Hostiles . | . . . . Robots Corrupted . | . . . . Combat Hostiles . | . . . . Parts Fried . | . . . . Impact Corruptions . | . . . . Robots Melted . | . . . . Combat Hostiles . | . . . . Parts Melted 3 | . . 3 . Heat Transferred 309 | . 50 259 . Parts Sabotaged . | . . . . Parts Stolen . | . . . . Parts Stripped . | . . . . Power Chain Reactions . | . . . . Alert | -11 -10 -10 -9 ------- Run | Yrd Mat Sub Rec Maximum Alert Level . | . . . . Low Security (%) 100 | 100 100 . 100 Level 1 . | . . . . Level 2 . | . . . . Level 3 . | . . . . Level 4 . | . . . . Level 5 . | . . . . High Security . | . . . . Max Security . | . . . . Peak Influence 92 | . 92 . 20 Initial . | . . . . Average 5 | . 9 . . Influence Increases 623 | . 320 270 33 Destroy 0b10 Robot/C 460 | . 220 220 20 Destroy 0b10 Robot/NC 20 | . 20 . . Destroy Leader 68 | . 48 20 . Successful Hack 40 | . 27 . 13 Disable Machine 4 | . 4 . . Destroy Structure 1 | . 1 . . Lose Combat Pursuer 30 | . . 30 . Influence Decreases 623 | . 320 270 33 Time Decay 613 | . 320 260 33 Lost Part 10 | . . 10 . Squads Dispatched 2 | . 2 . . Investigation 2 | . 2 . . Extermination . | . . . . Reinforcement . | . . . . Assault . | . . . . Garrison . | . . . . Intercept . | . . . . Searches Triggered . | . . . . Construction Impeded . | . . . . Haulers Reinforced . | . . . . Active Scanning Responses . | . . . . Cargo Convoy Interrupts . | . . . . Stealth | -11 -10 -10 -9 --------- Run | Yrd Mat Sub Rec Distress Signals 1 | . 1 . . Communications Jammed . | . . . . Distress Signals . | . . . . Times Spotted 45 | . 13 31 1 Peak Tracking Total 6 | . 3 6 . Tactical Retreats 7 | . . 7 . Traps | -11 -10 -10 -9 ------- Run | Yrd Mat Sub Rec Traps Triggered 2 | . . 2 . Indirectly . | . . . . Trap Hack Attempts . | . . . . Triggered . | . . . . Disarmed . | . . . . Reprogrammed 1 | . 1 . . Reused . | . . . . Traps Extracted . | . . . . Installed . | . . . . Triggered . | . . . . Machines | -11 -10 -10 -9 ---------- Run | Yrd Mat Sub Rec Machines Disabled 3 | . 1 2 . Max in Single Turn 1 | . 1 1 . Machines Repaired . | . . . . Machines Dismantled . | . . . . Machines Sabotaged . | . . . . Overloaded Fab Kills . | . . . . Hacking | -11 -10 -10 -9 --------- Run | Yrd Mat Sub Rec Machines Accessed 9 | . 2 2 5 Terminals 7 | . 2 . 5 Fabricators . | . . . . Repair Stations . | . . . . Recycling Units . | . . . . Scanalyzers . | . . . . Garrison Access . | . . . . Total Hacks 34 | . 7 6 21 Successful 26 | . 5 6 15 Failed 8 | . 2 . 6 Catastrophic . | . . . . Database Lockouts . | . . . . Manual . | . . . . Terminals 28 | . 7 . 21 Fabricators . | . . . . Repair Stations . | . . . . Recycling Units . | . . . . Scanalyzers . | . . . . Garrison Access . | . . . . Terminal Hacks 26 | . 5 6 15 Record 5 | . . 5 . Part Schematic 6 | . . . 6 Robot Schematic 1 | . . . 1 Robot Analysis 1 | . 1 . . Prototype ID Bank 1 | . . . 1 Branch Access Points 1 | . . . 1 Machine Index 1 | . 1 . . Alert Level 1 | . . . 1 Reprogram Traps 2 | . 2 . . Recall Investigation 1 | . . . 1 Hauler Manifests 1 | . . . 1 Registered Components 1 | . . . 1 Registered Prototypes 1 | . 1 . . Zone Layout 2 | . . . 2 Proto ID Catalog 1 | . . 1 . Fabricator Hacks . | . . . . Repair Station Hacks . | . . . . Recycling Unit Hacks . | . . . . Scanalyzer . | . . . . Garrison Access Hacks . | . . . . Unauthorized Hacks . | . . . . Terminals . | . . . . Fabricators . | . . . . Repair Stations . | . . . . Recycling Units . | . . . . Scanalyzers . | . . . . Garrison Access . | . . . . Data Cores Recovered . | . . . . Used . | . . . . Hacking Detections 6 | . 2 . 4 Full Trace Events 5 | . 2 . 3 Feedback Events . | . . . . Feedback Blocked . | . . . . Robot Schematics Acquired 1 | . . . 1 Robots Built . | . . . . Authchips . | . . . . Time . | . . . . Total Robot Build Rating . | . . . . Part Schematics Acquired 6 | . . . 6 Parts Built . | . . . . Authchips . | . . . . Time . | . . . . Total Part Build Rating . | . . . . Part Studies Acquired . | . . . . Parts Repaired . | . . . . Time . | . . . . Parts Recycled . | . . . . Recycled Matter . | . . . . Retrieved Matter . | . . . . Retrieved Components . | . . . . Parts Scanalyzed . | . . . . Part Schematics Acquired . | . . . . Parts Damaged . | . . . . Bothacking | -11 -10 -10 -9 ------------ Run | Yrd Mat Sub Rec Used RIF Installer . | . . . . Robots Hacked . | . . . . Non-combat . | . . . . Combat . | . . . . Robot Hacks Applied . | . . . . Relay Couplers Released . | . . . . Fabnet Peak Effective % . | . . . . Robots Rewired . | . . . . Allies Hacked . | . . . . Hacks Repelled . | . . . . Allies | -11 -10 -10 -9 -------- Run | Yrd Mat Sub Rec Total Allies . | . . . . Largest Group . | . . . . Highest-Rated Group . | . . . . Highest-Rated Ally . | . . . . Total Orders . | . . . . Ally Attacks . | . . . . Total Damage . | . . . . Kills . | . . . . Allies Corrupted . | . . . . Allies Melted . | . . . . Intel | -11 -10 -10 -9 ------- Run | Yrd Mat Sub Rec Active Infowar (turns) . | . . . . Robot Analysis Total 1 | . 1 . . Derelict Logs Recovered 1 | . . 1 . Drone Launches . | . . . . Drone Recoveries . | . . . . Exploration | -11 -10 -10 -9 ------------- Run | Yrd Mat Sub Rec Turns Passed 8627 | 44 1360 6440 783 Spaces Moved 4136 | 32 743 2992 369 Core 266 | 16 . 250 . Treads 2997 | 16 743 2238 . Legs 873 | . . 504 369 Wheels . | . . . . Hover . | . . . . Flight . | . . . . Fastest Speed 50 | 50 160 160 120 Average Speed 189 | 105 160 197 193 Slowest Speed 450 | 160 160 450 260 Overloaded Moves . | . . . . Propulsion Burnouts . | . . . . Robots Hopped . | . . . . Potential Cave-ins . | . . . . Cave-ins Triggered . | . . . . Exploration Rate (%) 58 | 3 71 95 63 Regions Visited 3 Branch Regions 2 Pre-discovered Areas 1 | . . 1 . Known Exits Taken 3 | 1 1 1 . Unknown Exits Taken . | . . . . Scrap Searched 8 | . . 8 . Spaces Dug 4 | . . 4 . Terrain Destroyed 6 | . 1 5 . Melee . | . . . . Projectile 6 | . 1 5 . AOE . | . . . . Terrain Rammed . | . . . . Walls Destroyed . | . . . . Machines Disabled . | . . . . Actions | -11 -10 -10 -9 --------- Run | Yrd Mat Sub Rec Total 4628 | 42 832 3321 433 Wait 227 | . 22 159 46 Move 4133 | 31 742 2991 369 Hop . | . . . . Pick Up 33 | 5 12 6 10 Fast Attach 9 | 1 1 5 2 Attach 9 | 5 3 1 . Detach 1 | . 1 . . Swap 13 | . 2 8 3 Drop 18 | . 2 15 1 Fire 185 | . 47 136 2 Melee . | . . . . Ram . | . . . . Kick . | . . . . Crush . | . . . . Escape Stasis . | . . . . Rewire . | . . . . Trap . | . . . . Miscellaneous . | . . . . Route ------- -11/Scrapyard -10/Materials (discovered 4 exits: *Mat x2 / *Min / *Sub) -10/Subcaves (discovered 3 exits: *Mat x2 / *Rec) -9/Recycling (discovered 1 exit: *Fac) History --------- Turn | Location | Event 13 | -11/Scrapyard | Identified exit to Materials 13 | -11/Scrapyard | Discovered exit to Materials (range 15) 45 | -11/Scrapyard | Entered Materials 45 | -10/Materials | Evolved 1 slot: Propulsion x1 258 | -10/Materials | Identified exit to Materials 258 | -10/Materials | Discovered exit to Materials (range 16) 311 | -10/Materials | Build established: Hacker-Mutant 518 | -10/Materials | Identified exit to Mines 518 | -10/Materials | Discovered exit to Mines (range 11) 654 | -10/Materials | Discovered exit to Materials (range 16) 1391 | -10/Materials | Identified exit to Subcaves 1391 | -10/Materials | Discovered exit to Subcaves (range 8) 1405 | -10/Materials | Entered Subcaves 1406 | -10/Subcaves | Approached by a straggling Scientist 1439 | -10/Subcaves | Learned location of Recycling (-9) 1453 | -10/Subcaves | Shifting Twisted Machinery released Battle Cannon 1467 | -10/Subcaves | Shifting Twisted Machinery released Battle Rifle 1549 | -10/Subcaves | Visited Clippyterm 1554 | -10/Subcaves | Learned Factory trap positions 1554 | -10/Subcaves | Learned Factory garrison access intel 2324 | -10/Subcaves | Disturbed a concealed Subdweller 2416 | -10/Subcaves | Identified exit to Materials 2416 | -10/Subcaves | Discovered exit to Materials (range 15) 2556 | -10/Subcaves | Shifting Twisted Machinery released Sub. Beam Cannon 2582 | -10/Subcaves | Shifting Twisted Machinery released Battle Cannon 2673 | -10/Subcaves | A swath of the cavern ceiling suddenly collapsed 3104 | -10/Subcaves | Core integrity fell below 50% 3198 | -10/Subcaves | A swath of the cavern ceiling suddenly collapsed 3491 | -10/Subcaves | Disturbed a concealed Subdweller 3683 | -10/Subcaves | Discovered exit to Materials (range 8) 4368 | -10/Subcaves | Visited 4L-MR0's lab 4634 | -10/Subcaves | Shifting Twisted Machinery released Battle Cannon 4641 | -10/Subcaves | Shifting Twisted Machinery released Riot Gun 5137 | -10/Subcaves | Core integrity fell below 20% 5606 | -10/Subcaves | Identified exit to Recycling 5606 | -10/Subcaves | Discovered exit to Recycling (range 13) 7845 | -10/Subcaves | Entered Recycling 8390 | -9/Recycling | Identified exit to Factory 8390 | -9/Recycling | Discovered exit to Factory (range 6) 8628 | -9/Recycling | Destroyed by Y-45 Defender with Beam Rifle Last Messages --------------- Weight Redist. System Rating: 2 Schematic downloaded. >>Schematic(Shield Generator) Downloading schematic... Shield Generator Rating: 2 Schematic downloaded. 08614_ Connecting with Terminal... >>Schematic(Spread Laser) Downloading schematic... Spread Laser Rating: 2 Schematic downloaded. >>Layout(Zone) Retrieving Zone 5O layout... Downloaded map data. >>Alert(Check) Current Alert Level: Low Security 08628_ Y-45 Defender springs to life. Map ----- +----------------------------------------------------+ | | | | | | | | | | | ?????????????????????????????????????????????????? | | ?????????????????????????????????????????????????? | | ?????????????????????????????????????????????????? | | ?????????????????????????????????????????????????? | | ?????????????????????????????????????????????????? | | ?????????????????????????????????????????????????? | | ?????????????????????????????????????????????????? | | ?????????????????????????????????????????????????? | | ?????????????????????????????????????????????????? | | ?????????????????????????????????????????????????? | | ?????????????????????????????????????????????????? | | ?????????????????????????????????????????????????? | | ?????????????????????????????????????????????????? | | ######?????????#####?????????????????????????????? | | #?????????#!!!####??????????????????????????? | | "" ##????##### !##T#######????????????????????? | | """ T#????# #???#####????????????? | | """ ##????# #???# ????????????? | | """ ####### #???# "????????????? | | "" + #???# "????????????? | | # ############ @ #???# "????????????? | | ###### #??????????# ###?# ????????????? | | ?????# #??????????# ""#######????????????? | | ######+###????##### Y"# ????????????? | | ]!]#????# # ""# ????????????? | | ###### # ### ????????????? | | = + ????????????? | | ####### ????????????? | | ! #????## ????????????? | | #????#Y ????????????? | | / #????## #####????????????? | | =#?????#%r ??????????????????? | | +?????? ?????????????????? | | #???????? ?????????????????? | | ] +??????????? ???????????????????? | | [ #????????????? ?????????????????????? | | ##+####### #??????????????????????????????????? | | # #??????????????????????????????????? | | # #######??????????????????????????????????????? | | # #????????????????????????????????????????????? | | # #???????? ???????????????????????????????????? | | # #???????? ???????????????????????????????????? | | # #???????? ???????????????????????????????????? | | # #########/#####??????????????????????????????? | | # ## ##?????????????????????????????? | +----------------------------------------------------+ Best States ------------- Heat Dissipation 25 Energy Generation 14 Energy Capacity 265 Matter Stores 300 Matter Capacity 300 Sight Range 16 Terrain Scan Density 10 Armor Coverage 150 Resistance: KI 35 Resistance: TH 45 Resistance: EX 35 Resistance: EM 35 Resistance: I 35 Resistance: S 35 Resistance: P 35 Evasion (%) 55 Recoil Reduction 3 Offensive Hacking 20 Authchip Count 2 Item Schematics ----------------- Imp. Ion Engine | -9/Recycling | Hacked Machine Analyzer | -9/Recycling | Hacked Trap Scanner | -9/Recycling | Hacked Weight Redist. System | -9/Recycling | Hacked Shield Generator | -9/Recycling | Hacked Spread Laser | -9/Recycling | Hacked Robot Schematics ------------------ O-16 Technician | -9/Recycling | Hacked Fabricated ------------ Nothing Repaired ---------- Nothing Studied --------- None Alien Tech Used ----------------- None Achievements -------------- None Challenges ------------ None Game ------ Seed BackupTerrainArchive Manual? 0 Play Time 00:27:35 Cumulative 98.7 hours Start 2025.11.17 @ 09:13:39 End 2025.11.17 @ 09:41:00 Sessions 1 Manual Loads 0 Difficulty Explorer Special Mode None Game No. 108 Rogue 0 Adventurer 0 Explorer 108 Win Type - Total 0 Types 0/0/0/0/0/0/0/0/0/0 Lore% 60 Gallery% 59 Achievement% 46 Wizard Run 0 Options --------- Layout 1 ASCII 0 Keyboard 0 Movement Mouse Keybinds 0 Fullscreen 1 Font 24/Smallcaps Map View 50x35 Zoom Use 0% Tactical HUD 1 Map Filters NONE Filters NONE Steam 1 RUN: 489e9999-7f7a-49fd-817c-7f883854d16d